[Event "Titled Tuesday Blitz February 21 Early 2023"]
[White "Dubov, Daniil"]
[Black "Madaminov, Mukhiddin"]
[WhiteFideId "24126055"]
[BlackFideId "14210703"]
[WhiteElo "2708"]
[BlackElo "2422"]
[Result "1-0"]
[Round "05"]
[TimeControl "180+2"]
[Date "2023.02.21"]
[WhiteClock "0:00:07"]
[BlackClock "0:00:01"]

1. d4 {[%clk 0:02:58]}  Nf6 {[%clk 0:03:00]} 2. Nf3 {[%clk 0:02:57]}  g6 {[%clk 0:02:59]} 3. c4 {[%clk 0:02:55]}  Bg7 {[%clk 0:02:59]} 4. Nc3 {[%clk 0:02:56]}  d5 {[%clk 0:02:59]} 5. Bg5 {[%clk 0:02:56]}  dxc4 {[%clk 0:02:50]} 6. e4 {[%clk 0:02:54]}  c5 {[%clk 0:02:39]} 7. d5 {[%clk 0:02:53]}  b5 {[%clk 0:02:36]} 8. e5 {[%clk 0:02:36]}  b4 {[%clk 0:02:34]} 9. Bxf6 {[%clk 0:01:53]}  exf6 {[%clk 0:02:35]} 10. Ne4 {[%clk 0:01:52]}  fxe5 {[%clk 0:02:20]} 11. Bxc4 {[%clk 0:01:52]}  O-O {[%clk 0:02:20]} 12. O-O {[%clk 0:01:51]}  Nd7 {[%clk 0:02:10]} 13. d6 {[%clk 0:01:47]}  Nb6 {[%clk 0:02:05]} 14. Bd5 {[%clk 0:01:33]}  Nxd5 {[%clk 0:01:49]} 15. Qxd5 {[%clk 0:01:34]}  Be6 {[%clk 0:01:49]} 16. Qxc5 {[%clk 0:01:34]}  Qb6 {[%clk 0:01:13]} 17. Rac1 {[%clk 0:00:50]}  Rfc8 {[%clk 0:01:01]} 18. Qxb6 {[%clk 0:00:48]}  axb6 {[%clk 0:01:02]} 19. Rc7 {[%clk 0:00:44]}  f5 {[%clk 0:00:35]} 20. Neg5 {[%clk 0:00:34]}  Bxa2 {[%clk 0:00:35]} 21. Ra1 {[%clk 0:00:26]}  Rd8 {[%clk 0:00:33]} 22. h4 {[%clk 0:00:12]}  Rxd6 {[%clk 0:00:26]} 23. h5 {[%clk 0:00:12]}  e4 {[%clk 0:00:18]} 24. Rxa2 {[%clk 0:00:10]}  Rxa2 {[%clk 0:00:10]} 25. Rc8+ {[%clk 0:00:09]}  Bf8 {[%clk 0:00:11]} 26. Ne5 {[%clk 0:00:10]}  Ra5 {[%clk 0:00:09]} 27. Nef7 {[%clk 0:00:03]}  Rd1+ {[%clk 0:00:09]} 28. Kh2 {[%clk 0:00:03]}  Rc5 {[%clk 0:00:09]} 29. Rb8 {[%clk 0:00:03]}  Kg7 {[%clk 0:00:04]} 30. Rb7 {[%clk 0:00:03]}  Kg8 {[%clk 0:00:01]} 31. h6 {[%clk 0:00:03]}  Rc6 {[%clk 0:00:01]} 32. Ne5 {[%clk 0:00:02]}  Rf6 {[%clk 0:00:01]} 33. Nxh7 {[%clk 0:00:02]}  Re6 {[%clk 0:00:01]} 34. Ng5 {[%clk 0:00:02]}  Bd6 {[%clk 0:00:01]} 35. h7+ {[%clk 0:00:02]}  Kh8 {[%clk 0:00:02]} 36. Nf7+ {[%clk 0:00:03]}  Kxh7 {[%clk 0:00:02]} 37. Nxd6+ {[%clk 0:00:04]}  Kh6 {[%clk 0:00:02]} 38. Ndf7+ {[%clk 0:00:04]}  Kg7 {[%clk 0:00:01]} 39. Ng5+ {[%clk 0:00:04]}  Kf6 {[%clk 0:00:02]} 40. Nxe6 {[%clk 0:00:05]}  Kxe5 {[%clk 0:00:03]} 41. Rxb6 {[%clk 0:00:04]}  Rd2 {[%clk 0:00:02]} 42. Nf8 {[%clk 0:00:04]}  Rxf2 {[%clk 0:00:02]} 43. Nxg6+ {[%clk 0:00:03]}  Kd4 {[%clk 0:00:03]} 44. Rxb4+ {[%clk 0:00:04]}  Kd3 {[%clk 0:00:03]} 45. Rb3+ {[%clk 0:00:04]}  Kc4 {[%clk 0:00:03]} 46. Rb8 {[%clk 0:00:04]}  e3 {[%clk 0:00:03]} 47. Kg3 {[%clk 0:00:05]}  Rf1 {[%clk 0:00:02]} 48. Nf4 {[%clk 0:00:05]}  Kd4 {[%clk 0:00:02]} 49. Rd8+ {[%clk 0:00:02]}  Ke4 {[%clk 0:00:02]} 50. Re8+ {[%clk 0:00:03]}  Kd4 {[%clk 0:00:03]} 51. b4 {[%clk 0:00:02]}  Rb1 {[%clk 0:00:03]} 52. Ne2+ {[%clk 0:00:02]}  Kd3 {[%clk 0:00:03]} 53. Nf4+ {[%clk 0:00:03]}  Kd4 {[%clk 0:00:04]} 54. b5 {[%clk 0:00:03]}  Rxb5 {[%clk 0:00:02]} 55. Kf3 {[%clk 0:00:02]}  Rb3 {[%clk 0:00:02]} 56. Ne2+ {[%clk 0:00:03]}  Kd5 {[%clk 0:00:01]} 57. Rxe3 {[%clk 0:00:04]}  Rb4 {[%clk 0:00:01]} 58. Nf4+ {[%clk 0:00:04]}  Kd6 {[%clk 0:00:01]} 59. g3 {[%clk 0:00:05]}  Kd7 {[%clk 0:00:02]} 60. Re5 {[%clk 0:00:05]}  Rb3+ {[%clk 0:00:02]} 61. Kg2 {[%clk 0:00:05]}  Rb2+ {[%clk 0:00:02]} 62. Kh3 {[%clk 0:00:05]}  Rb8 {[%clk 0:00:02]} 63. Rxf5 {[%clk 0:00:04]}  Ke7 {[%clk 0:00:03]} 64. Kg4 {[%clk 0:00:04]}  Rg8+ {[%clk 0:00:02]} 65. Rg5 {[%clk 0:00:05]}  Ra8 {[%clk 0:00:03]} 66. Rg6 {[%clk 0:00:05]}  Kf7 {[%clk 0:00:04]} 67. Rb6 {[%clk 0:00:05]}  Rg8+ {[%clk 0:00:04]} 68. Kf3 {[%clk 0:00:04]}  Rc8 {[%clk 0:00:05]} 69. Rb3 {[%clk 0:00:05]}  Kf6 {[%clk 0:00:04]} 70. Re3 {[%clk 0:00:06]}  Ra8 {[%clk 0:00:02]} 71. g4 {[%clk 0:00:06]}  Ra1 {[%clk 0:00:03]} 72. Re6+ {[%clk 0:00:05]}  Kf7 {[%clk 0:00:03]} 73. Rb6 {[%clk 0:00:05]}  Ra3+ {[%clk 0:00:03]} 74. Ke4 {[%clk 0:00:05]}  Ra4+ {[%clk 0:00:04]} 75. Ke5 {[%clk 0:00:04]}  Ra5+ {[%clk 0:00:05]} 76. Nd5 {[%clk 0:00:04]}  Ra3 {[%clk 0:00:05]} 77. Kf5 {[%clk 0:00:04]}  Rf3+ {[%clk 0:00:05]} 78. Nf4 {[%clk 0:00:04]}  Ra3 {[%clk 0:00:06]} 79. Rb7+ {[%clk 0:00:04]}  Kf8 {[%clk 0:00:06]} 80. Ng6+ {[%clk 0:00:04]}  Kg8 {[%clk 0:00:05]} 81. Ne5 {[%clk 0:00:05]}  Ra6 {[%clk 0:00:01]} 82. g5 {[%clk 0:00:05]}  Rd6 {[%clk 0:00:02]} 83. Rb8+ {[%clk 0:00:05]}  Kg7 {[%clk 0:00:02]} 84. Rb7+ {[%clk 0:00:06]}  Kg8 {[%clk 0:00:03]} 85. Ng4 {[%clk 0:00:06]}  Rd5+ {[%clk 0:00:03]} 86. Kg6 {[%clk 0:00:06]}  Kf8 {[%clk 0:00:02]} 87. Rf7+ {[%clk 0:00:06]}  Ke8 {[%clk 0:00:01]} 88. Nf6+ {[%clk 0:00:07]} 1-0


[Site "https://www.chess.com"]

[Event "Titled Tuesday Blitz February 21 Early 2023"]
[White "Kovalenko, Igor"]
[Black "Stribuk, Artiom"]
[WhiteFideId "14117908"]
[BlackFideId "13515659"]
[WhiteElo "2674"]
[BlackElo "2378"]
[Result "1-0"]
[Round "05"]
[TimeControl "180+2"]
[Date "2023.02.21"]
[WhiteClock "0:01:38"]
[BlackClock "0:00:05"]

1. c4 {[%clk 0:03:00]}  g6 {[%clk 0:02:31]} 2. g3 {[%clk 0:02:59]}  c5 {[%clk 0:02:31]} 3. Bg2 {[%clk 0:03:00]}  Bg7 {[%clk 0:02:31]} 4. Nc3 {[%clk 0:03:01]}  Nc6 {[%clk 0:02:32]} 5. Nf3 {[%clk 0:02:59]}  e5 {[%clk 0:02:31]} 6. d3 {[%clk 0:02:59]}  Nge7 {[%clk 0:02:32]} 7. Rb1 {[%clk 0:02:59]}  d6 {[%clk 0:02:32]} 8. O-O {[%clk 0:02:58]}  O-O {[%clk 0:02:30]} 9. a3 {[%clk 0:02:58]}  a5 {[%clk 0:02:27]} 10. Bd2 {[%clk 0:02:58]}  Be6 {[%clk 0:02:18]} 11. Ng5 {[%clk 0:02:58]}  Bg4 {[%clk 0:02:16]} 12. h3 {[%clk 0:02:58]}  Bc8 {[%clk 0:02:16]} 13. Nb5 {[%clk 0:02:55]}  f5 {[%clk 0:02:11]} 14. b4 {[%clk 0:02:53]}  axb4 {[%clk 0:01:51]} 15. axb4 {[%clk 0:02:54]}  h6 {[%clk 0:01:40]} 16. Nf3 {[%clk 0:02:53]}  e4 {[%clk 0:01:27]} 17. Ne1 {[%clk 0:02:39]}  Be6 {[%clk 0:01:26]} 18. Nc2 {[%clk 0:02:35]}  Ra2 {[%clk 0:01:20]} 19. Bf4 {[%clk 0:02:32]}  Ne5 {[%clk 0:00:48]} 20. Ne3 {[%clk 0:02:24]}  exd3 {[%clk 0:00:41]} 21. exd3 {[%clk 0:02:21]}  g5 {[%clk 0:00:42]} 22. Bxe5 {[%clk 0:02:20]}  Bxe5 {[%clk 0:00:42]} 23. d4 {[%clk 0:02:17]}  Bg7 {[%clk 0:00:22]} 24. dxc5 {[%clk 0:02:06]}  dxc5 {[%clk 0:00:23]} 25. bxc5 {[%clk 0:01:52]}  f4 {[%clk 0:00:22]} 26. Nd5 {[%clk 0:01:52]}  f3 {[%clk 0:00:18]} 27. Bxf3 {[%clk 0:01:49]}  Bxh3 {[%clk 0:00:18]} 28. Bg2 {[%clk 0:01:46]}  Bxg2 {[%clk 0:00:14]} 29. Kxg2 {[%clk 0:01:47]}  Nf5 {[%clk 0:00:13]} 30. Qd3 {[%clk 0:01:40]}  g4 {[%clk 0:00:08]} 31. Rbe1 {[%clk 0:01:39]}  Qg5 {[%clk 0:00:08]} 32. Re2 {[%clk 0:01:38]}  Rfa8 {[%clk 0:00:07]} 33. Rxa2 {[%clk 0:01:37]}  Rxa2 {[%clk 0:00:05]} 34. Qxf5 {[%clk 0:01:38]} 1-0


[Site "https://www.chess.com"]

[Event "Titled Tuesday Blitz February 21 Early 2023"]
[White "Bharath Subramaniyam H"]
[Black "Kilic, Eray"]
[WhiteFideId "46634827"]
[BlackFideId "44517173"]
[WhiteElo "2517"]
[BlackElo "2414"]
[Result "0-1"]
[Round "05"]
[TimeControl "180+2"]
[Date "2023.02.21"]
[WhiteClock "0:00:06"]
[BlackClock "0:00:52"]

1. e4 {[%clk 0:02:53]}  c5 {[%clk 0:02:59]} 2. Nf3 {[%clk 0:02:51]}  d6 {[%clk 0:03:00]} 3. d4 {[%clk 0:02:51]}  cxd4 {[%clk 0:03:00]} 4. Nxd4 {[%clk 0:02:52]}  Nf6 {[%clk 0:03:01]} 5. Nc3 {[%clk 0:02:52]}  a6 {[%clk 0:03:01]} 6. h3 {[%clk 0:02:52]}  e5 {[%clk 0:03:01]} 7. Nb3 {[%clk 0:02:50]}  h5 {[%clk 0:02:57]} 8. Bg5 {[%clk 0:02:49]}  Be6 {[%clk 0:02:54]} 9. Qd2 {[%clk 0:02:47]}  Nbd7 {[%clk 0:02:52]} 10. O-O-O {[%clk 0:02:46]}  Qc7 {[%clk 0:02:51]} 11. Kb1 {[%clk 0:02:45]}  Rc8 {[%clk 0:02:49]} 12. f4 {[%clk 0:02:45]}  b5 {[%clk 0:02:45]} 13. f5 {[%clk 0:02:19]}  Bc4 {[%clk 0:02:21]} 14. Bxc4 {[%clk 0:02:15]}  bxc4 {[%clk 0:02:22]} 15. Bxf6 {[%clk 0:02:14]}  Nxf6 {[%clk 0:02:12]} 16. Nc1 {[%clk 0:02:15]}  Qb7 {[%clk 0:02:12]} 17. Rhe1 {[%clk 0:02:12]}  Be7 {[%clk 0:02:07]} 18. Nd5 {[%clk 0:02:06]}  Nxd5 {[%clk 0:01:39]} 19. Qxd5 {[%clk 0:02:04]}  Qb6 {[%clk 0:01:39]} 20. g4 {[%clk 0:01:39]}  O-O {[%clk 0:01:38]} 21. c3 {[%clk 0:01:26]}  Rc5 {[%clk 0:01:29]} 22. Qd2 {[%clk 0:01:25]}  Rb8 {[%clk 0:01:30]} 23. Qg2 {[%clk 0:01:04]}  Rb5 {[%clk 0:01:17]} 24. Re2 {[%clk 0:01:04]}  h4 {[%clk 0:01:06]} 25. Qf2 {[%clk 0:00:31]}  Rxb2+ {[%clk 0:01:02]} 26. Rxb2 {[%clk 0:00:29]}  Qxf2 {[%clk 0:01:02]} 27. Rxb8+ {[%clk 0:00:30]}  Kh7 {[%clk 0:01:02]} 28. Rb2 {[%clk 0:00:19]}  Qf3 {[%clk 0:01:01]} 29. Ne2 {[%clk 0:00:17]}  Qxe4+ {[%clk 0:00:59]} 30. Ka1 {[%clk 0:00:16]}  d5 {[%clk 0:00:59]} 31. Rbd2 {[%clk 0:00:14]}  Bg5 {[%clk 0:00:59]} 32. Rb2 {[%clk 0:00:14]}  Be3 {[%clk 0:00:57]} 33. Nc1 {[%clk 0:00:10]}  d4 {[%clk 0:00:56]} 34. Re2 {[%clk 0:00:08]}  Qf3 {[%clk 0:00:54]} 35. Ree1 {[%clk 0:00:08]}  Bd2 {[%clk 0:00:51]} 36. Rf1 {[%clk 0:00:04]}  Bxc3+ {[%clk 0:00:51]} 37. Kb1 {[%clk 0:00:05]}  Qe4+ {[%clk 0:00:52]} 38. Nd3 {[%clk 0:00:06]}  cxd3 {[%clk 0:00:52]} 0-1


[Site "https://www.chess.com"]

[Event "Titled Tuesday Blitz February 21 Early 2023"]
[White "Fier, Alexandr"]
[Black "Caruana, Fabiano"]
[WhiteFideId "2107139"]
[BlackFideId "2020009"]
[WhiteElo "2589"]
[BlackElo "2764"]
[Result "0-1"]
[Round "05"]
[TimeControl "180+2"]
[Date "2023.02.21"]
[WhiteClock "0:00:13"]
[BlackClock "0:00:09"]

1. e4 {[%clk 0:03:00]}  e5 {[%clk 0:02:58]} 2. Nf3 {[%clk 0:03:01]}  Nc6 {[%clk 0:02:59]} 3. Bc4 {[%clk 0:03:01]}  Nf6 {[%clk 0:02:58]} 4. d3 {[%clk 0:03:02]}  Bc5 {[%clk 0:02:59]} 5. Bg5 {[%clk 0:03:02]}  h6 {[%clk 0:02:58]} 6. Bh4 {[%clk 0:03:02]}  Be7 {[%clk 0:02:58]} 7. Nc3 {[%clk 0:02:58]}  d6 {[%clk 0:02:58]} 8. a3 {[%clk 0:02:56]}  O-O {[%clk 0:02:58]} 9. Bxf6 {[%clk 0:02:55]}  Bxf6 {[%clk 0:02:58]} 10. Nd5 {[%clk 0:02:55]}  g6 {[%clk 0:02:34]} 11. h4 {[%clk 0:02:54]}  Bg7 {[%clk 0:02:33]} 12. h5 {[%clk 0:02:53]}  g5 {[%clk 0:02:33]} 13. Ne3 {[%clk 0:02:53]}  Kh8 {[%clk 0:02:30]} 14. g4 {[%clk 0:02:53]}  Nd4 {[%clk 0:02:29]} 15. Nxd4 {[%clk 0:02:51]}  exd4 {[%clk 0:02:30]} 16. Nf5 {[%clk 0:02:52]}  Bxf5 {[%clk 0:02:30]} 17. gxf5 {[%clk 0:02:51]}  c6 {[%clk 0:02:29]} 18. Qf3 {[%clk 0:02:50]}  Be5 {[%clk 0:02:26]} 19. Kf1 {[%clk 0:02:50]}  b5 {[%clk 0:02:22]} 20. Ba2 {[%clk 0:02:49]}  a5 {[%clk 0:02:21]} 21. Kg2 {[%clk 0:02:45]}  g4 {[%clk 0:02:20]} 22. Qe2 {[%clk 0:02:41]}  Qg5 {[%clk 0:02:12]} 23. Rag1 {[%clk 0:02:37]}  a4 {[%clk 0:02:08]} 24. Qd1 {[%clk 0:02:36]}  Ra7 {[%clk 0:01:53]} 25. Kf1 {[%clk 0:02:36]}  Rg8 {[%clk 0:01:53]} 26. Rg2 {[%clk 0:02:35]}  Rg7 {[%clk 0:01:31]} 27. Rhg1 {[%clk 0:02:30]}  Qxh5 {[%clk 0:01:30]} 28. Rxg4 {[%clk 0:02:30]}  Ra8 {[%clk 0:01:30]} 29. f6 {[%clk 0:01:50]}  Rg6 {[%clk 0:01:01]} 30. Bxf7 {[%clk 0:01:29]}  Qh3+ {[%clk 0:01:00]} 31. Ke1 {[%clk 0:01:28]}  Rxf6 {[%clk 0:00:55]} 32. Bg6 {[%clk 0:01:19]}  Bf4 {[%clk 0:00:34]} 33. Bf5 {[%clk 0:01:12]}  Rxf5 {[%clk 0:00:32]} 34. exf5 {[%clk 0:00:55]}  Re8+ {[%clk 0:00:31]} 35. Qe2 {[%clk 0:00:56]}  Rxe2+ {[%clk 0:00:30]} 36. Kxe2 {[%clk 0:00:57]}  Bg5 {[%clk 0:00:28]} 37. Rxd4 {[%clk 0:00:55]}  Qxf5 {[%clk 0:00:27]} 38. Re4 {[%clk 0:00:52]}  d5 {[%clk 0:00:26]} 39. Re8+ {[%clk 0:00:52]}  Kh7 {[%clk 0:00:26]} 40. Rg3 {[%clk 0:00:52]}  Qf7 {[%clk 0:00:24]} 41. Ra8 {[%clk 0:00:51]}  Qh5+ {[%clk 0:00:23]} 42. Rf3 {[%clk 0:00:51]}  Qg4 {[%clk 0:00:21]} 43. Ra7+ {[%clk 0:00:51]}  Kg6 {[%clk 0:00:21]} 44. Rc7 {[%clk 0:00:51]}  Qe6+ {[%clk 0:00:21]} 45. Kf1 {[%clk 0:00:51]}  Kh5 {[%clk 0:00:21]} 46. Kg2 {[%clk 0:00:50]}  Qe5 {[%clk 0:00:19]} 47. Rc8 {[%clk 0:00:48]}  Qxb2 {[%clk 0:00:19]} 48. Rg8 {[%clk 0:00:48]}  Qxc2 {[%clk 0:00:18]} 49. Rh3+ {[%clk 0:00:28]}  Kg4 {[%clk 0:00:16]} 50. Rxh6 {[%clk 0:00:29]}  Qxd3 {[%clk 0:00:16]} 51. Rhg6 {[%clk 0:00:29]}  Qe4+ {[%clk 0:00:15]} 52. Kg1 {[%clk 0:00:30]}  Qf4 {[%clk 0:00:14]} 53. Rxc6 {[%clk 0:00:29]}  d4 {[%clk 0:00:15]} 54. Rc5 {[%clk 0:00:22]}  b4 {[%clk 0:00:15]} 55. axb4 {[%clk 0:00:22]}  d3 {[%clk 0:00:15]} 56. Rd5 {[%clk 0:00:22]}  d2 {[%clk 0:00:15]} 57. Rg7 {[%clk 0:00:18]}  a3 {[%clk 0:00:15]} 58. Ra7 {[%clk 0:00:18]}  Qe4 {[%clk 0:00:15]} 59. Rxd2 {[%clk 0:00:15]}  Bxd2 {[%clk 0:00:15]} 60. Rxa3 {[%clk 0:00:15]}  Qe2 {[%clk 0:00:14]} 61. Rg3+ {[%clk 0:00:14]}  Kf4 {[%clk 0:00:14]} 62. b5 {[%clk 0:00:14]}  Be1 {[%clk 0:00:14]} 63. Rg2 {[%clk 0:00:15]}  Qxb5 {[%clk 0:00:14]} 64. Kh2 {[%clk 0:00:14]}  Qh5+ {[%clk 0:00:14]} 65. Kg1 {[%clk 0:00:15]}  Qe2 {[%clk 0:00:14]} 66. Kh1 {[%clk 0:00:13]}  Qf1+ {[%clk 0:00:13]} 67. Kh2 {[%clk 0:00:13]}  Qe2 {[%clk 0:00:09]} 68. Kh1 {[%clk 0:00:12]}  Bxf2 {[%clk 0:00:09]} 69. Rg8 {[%clk 0:00:11]}  Qf3+ {[%clk 0:00:09]} 70. Kh2 {[%clk 0:00:12]}  Qh5+ {[%clk 0:00:09]} 71. Kg2 {[%clk 0:00:12]}  Qf3+ {[%clk 0:00:09]} 72. Kh2 {[%clk 0:00:12]}  Bg3+ {[%clk 0:00:09]} 73. Kh3 {[%clk 0:00:13]}  Qh1# {[%clk 0:00:09]} 0-1


[Site "https://www.chess.com"]

[Event "Titled Tuesday Blitz February 21 Early 2023"]
[White "Bluebaum, Matthias"]
[Black "Talibov, Shiroghlan"]
[WhiteFideId "24651516"]
[BlackFideId "13429078"]
[WhiteElo "2669"]
[BlackElo "2359"]
[Result "1/2-1/2"]
[Round "05"]
[TimeControl "180+2"]
[Date "2023.02.21"]
[WhiteClock "0:00:07"]
[BlackClock "0:00:20"]

1. d4 {[%clk 0:03:00]}  Nf6 {[%clk 0:02:49]} 2. c4 {[%clk 0:03:00]}  e6 {[%clk 0:02:47]} 3. Nc3 {[%clk 0:03:01]}  d5 {[%clk 0:02:45]} 4. cxd5 {[%clk 0:03:02]}  Nxd5 {[%clk 0:02:40]} 5. e4 {[%clk 0:03:02]}  Nxc3 {[%clk 0:02:40]} 6. bxc3 {[%clk 0:03:03]}  c5 {[%clk 0:02:40]} 7. Rb1 {[%clk 0:03:04]}  cxd4 {[%clk 0:02:39]} 8. cxd4 {[%clk 0:03:05]}  Nc6 {[%clk 0:02:39]} 9. Bb5 {[%clk 0:03:05]}  Bd7 {[%clk 0:02:38]} 10. Nf3 {[%clk 0:03:05]}  Bb4+ {[%clk 0:02:37]} 11. Bd2 {[%clk 0:03:06]}  Bxd2+ {[%clk 0:02:32]} 12. Qxd2 {[%clk 0:03:07]}  O-O {[%clk 0:02:32]} 13. O-O {[%clk 0:03:07]}  b6 {[%clk 0:02:32]} 14. d5 {[%clk 0:03:06]}  Na5 {[%clk 0:02:20]} 15. Bd3 {[%clk 0:02:57]}  Rc8 {[%clk 0:02:15]} 16. Rbc1 {[%clk 0:02:42]}  exd5 {[%clk 0:02:14]} 17. exd5 {[%clk 0:02:42]}  Qf6 {[%clk 0:02:14]} 18. Ba6 {[%clk 0:02:30]}  Rxc1 {[%clk 0:02:12]} 19. Rxc1 {[%clk 0:02:31]}  Bg4 {[%clk 0:02:10]} 20. Nd4 {[%clk 0:02:05]}  Rd8 {[%clk 0:02:08]} 21. h3 {[%clk 0:02:05]}  Bd7 {[%clk 0:01:52]} 22. Qc3 {[%clk 0:01:34]}  Re8 {[%clk 0:01:30]} 23. Qc7 {[%clk 0:01:15]}  Bxh3 {[%clk 0:01:29]} 24. gxh3 {[%clk 0:01:09]}  Qxd4 {[%clk 0:01:28]} 25. Qe7 {[%clk 0:01:08]}  Qa4 {[%clk 0:01:22]} 26. Rc8 {[%clk 0:00:18]}  Rxc8 {[%clk 0:00:58]} 27. Bxc8 {[%clk 0:00:18]}  g6 {[%clk 0:00:59]} 28. d6 {[%clk 0:00:19]}  Qd1+ {[%clk 0:00:58]} 29. Kh2 {[%clk 0:00:20]}  Qd4 {[%clk 0:00:56]} 30. Kg2 {[%clk 0:00:13]}  Qd5+ {[%clk 0:00:54]} 31. Kg1 {[%clk 0:00:13]}  Qd1+ {[%clk 0:00:53]} 32. Kg2 {[%clk 0:00:13]}  Qd5+ {[%clk 0:00:53]} 33. Kg3 {[%clk 0:00:14]}  Nc6 {[%clk 0:00:32]} 34. Qe8+ {[%clk 0:00:08]}  Kg7 {[%clk 0:00:31]} 35. d7 {[%clk 0:00:09]}  Qd3+ {[%clk 0:00:24]} 36. Kh2 {[%clk 0:00:08]}  Qd6+ {[%clk 0:00:23]} 37. Kg2 {[%clk 0:00:08]}  Qd5+ {[%clk 0:00:23]} 38. Kg1 {[%clk 0:00:09]}  Qd1+ {[%clk 0:00:23]} 39. Kg2 {[%clk 0:00:09]}  Qd5+ {[%clk 0:00:23]} 40. Kg1 {[%clk 0:00:10]}  Qd1+ {[%clk 0:00:23]} 41. Kh2 {[%clk 0:00:09]}  Qd6+ {[%clk 0:00:20]} 42. Kg2 {[%clk 0:00:07]}  Qd5+ {[%clk 0:00:20]} 1/2-1/2


[Site "https://www.chess.com"]